{"text_format":"3","workbook":"xlsx","n_sheets":1,"sheets":["Предложение"],"not_rendered":{"images":1,"defined_names":20},"read":"whole","date_system":"1900"}

{"sheet":"Предложение","index":0,"n_rows":39,"n_cols":7,"rows_kept":39,"merged":[[0,1,3,1],[0,3,0,6],[1,4,1,6],[2,4,2,6],[32,3,35,4],[36,3,36,6],[37,3,37,5],[38,3,38,5]]}
[{"$nulls":3},"ПРЕДЛОЖЕНИЕ ЗА СТРОИТЕЛСТВО"]
[{"$nulls":3},"Име на фирма","| Въведете улица и номер на фирмата в тази клетка"]
[{"$nulls":3},"Телефон","| Въведете номер на факс и имейл за връзка на фирмата в тази клетка"]
[{"$nulls":3},"КОЛИЧЕСТВО","ОПИСАНИЕ","ЕДИНИЧНА ЦЕНА","СУМА"]
[null,"КЛИЕНТ",null,10,"Артикул 1",{"v":165,"d":"165.00 лв."},{"$f":"IFERROR(Артикули[[#This Row],[КОЛИЧЕСТВО]]*Артикули[[#This Row],[ЕДИНИЧНА ЦЕНА]], \"\")","v":{"v":1650,"d":"1,650.00 лв."}}]
[null,"Въведете името на клиента в тази клетка",null,21,"Артикул 2",{"v":40,"d":"40.00 лв."},{"$f":"IFERROR(Артикули[[#This Row],[КОЛИЧЕСТВО]]*Артикули[[#This Row],[ЕДИНИЧНА ЦЕНА]], \"\")","v":{"v":840,"d":"840.00 лв."}}]
[null,"ОЦЕНКА №",null,5,"Артикул 3",{"v":10.5,"d":"10.50 лв."},{"$f":"IFERROR(Артикули[[#This Row],[КОЛИЧЕСТВО]]*Артикули[[#This Row],[ЕДИНИЧНА ЦЕНА]], \"\")","v":{"v":52.5,"d":"52.50 лв."}}]
[null,"C-1234",null,164,"Артикул 4",{"v":2.75,"d":"2.75 лв."},{"$f":"IFERROR(Артикули[[#This Row],[КОЛИЧЕСТВО]]*Артикули[[#This Row],[ЕДИНИЧНА ЦЕНА]], \"\")","v":{"v":451,"d":"451.00 лв."}}]
[null,"ДАТА",null,6,"Артикул 5",{"v":12,"d":"12.00 лв."},{"$f":"IFERROR(Артикули[[#This Row],[КОЛИЧЕСТВО]]*Артикули[[#This Row],[ЕДИНИЧНА ЦЕНА]], \"\")","v":{"v":72,"d":"72.00 лв."}}]
[null,{"$f":"TODAY()","v":"2018-11-22"},null,18,"Артикул 6",{"v":5.5,"d":"5.50 лв."},{"$f":"IFERROR(Артикули[[#This Row],[КОЛИЧЕСТВО]]*Артикули[[#This Row],[ЕДИНИЧНА ЦЕНА]], \"\")","v":{"v":99,"d":"99.00 лв."}}]
[null,"АДРЕС",null,1,"Артикул 7",{"v":25,"d":"25.00 лв."},{"$f":"IFERROR(Артикули[[#This Row],[КОЛИЧЕСТВО]]*Артикули[[#This Row],[ЕДИНИЧНА ЦЕНА]], \"\")","v":{"v":25,"d":"25.00 лв."}}]
[null,"Въведете улица и номер на клиента в тази клетка",{"$nulls":4},{"$f":"IFERROR(Артикули[[#This Row],[КОЛИЧЕСТВО]]*Артикули[[#This Row],[ЕДИНИЧНА ЦЕНА]], \"\")","v":{"v":0,"d":"0.00 лв."}}]
[null,"ГРАД/ОБЛАСТ/ПОЩЕНСКИ КОД",{"$nulls":4},{"$f":"IFERROR(Артикули[[#This Row],[КОЛИЧЕСТВО]]*Артикули[[#This Row],[ЕДИНИЧНА ЦЕНА]], \"\")","v":{"v":0,"d":"0.00 лв."}}]
[null,"Въведете град, област и пощенски код на клиента в тази клетка",{"$nulls":4},{"$f":"IFERROR(Артикули[[#This Row],[КОЛИЧЕСТВО]]*Артикули[[#This Row],[ЕДИНИЧНА ЦЕНА]], \"\")","v":{"v":0,"d":"0.00 лв."}}]
[null,"ТЕЛЕФОН",{"$nulls":4},{"$f":"IFERROR(Артикули[[#This Row],[КОЛИЧЕСТВО]]*Артикули[[#This Row],[ЕДИНИЧНА ЦЕНА]], \"\")","v":{"v":0,"d":"0.00 лв."}}]
[null,"Въведете телефонен номер на клиента в тази клетка",{"$nulls":4},{"$f":"IFERROR(Артикули[[#This Row],[КОЛИЧЕСТВО]]*Артикули[[#This Row],[ЕДИНИЧНА ЦЕНА]], \"\")","v":{"v":0,"d":"0.00 лв."}}]
[null,"ИМЕЙЛ",{"$nulls":4},{"$f":"IFERROR(Артикули[[#This Row],[КОЛИЧЕСТВО]]*Артикули[[#This Row],[ЕДИНИЧНА ЦЕНА]], \"\")","v":{"v":0,"d":"0.00 лв."}}]
[null,"Въведете имейл адрес на клиента в тази клетка",{"$nulls":4},{"$f":"IFERROR(Артикули[[#This Row],[КОЛИЧЕСТВО]]*Артикули[[#This Row],[ЕДИНИЧНА ЦЕНА]], \"\")","v":{"v":0,"d":"0.00 лв."}}]
[null,"ПРОДАВАЧ",{"$nulls":4},{"$f":"IFERROR(Артикули[[#This Row],[КОЛИЧЕСТВО]]*Артикули[[#This Row],[ЕДИНИЧНА ЦЕНА]], \"\")","v":{"v":0,"d":"0.00 лв."}}]
[null,"Въведете продавач в тази клетка",{"$nulls":4},{"$f":"IFERROR(Артикули[[#This Row],[КОЛИЧЕСТВО]]*Артикули[[#This Row],[ЕДИНИЧНА ЦЕНА]], \"\")","v":{"v":0,"d":"0.00 лв."}}]
[null,"ПРОЕКТ",{"$nulls":4},{"$f":"IFERROR(Артикули[[#This Row],[КОЛИЧЕСТВО]]*Артикули[[#This Row],[ЕДИНИЧНА ЦЕНА]], \"\")","v":{"v":0,"d":"0.00 лв."}}]
[null,"Въведете име на проекта в тази клетка",{"$nulls":4},{"$f":"IFERROR(Артикули[[#This Row],[КОЛИЧЕСТВО]]*Артикули[[#This Row],[ЕДИНИЧНА ЦЕНА]], \"\")","v":{"v":0,"d":"0.00 лв."}}]
[null,"ИЗГОТВЕНА ОТ:",{"$nulls":4},{"$f":"IFERROR(Артикули[[#This Row],[КОЛИЧЕСТВО]]*Артикули[[#This Row],[ЕДИНИЧНА ЦЕНА]], \"\")","v":{"v":0,"d":"0.00 лв."}}]
[null,"Въведете име на човека, който я е изготвил, в тази клетка",{"$nulls":4},{"$f":"IFERROR(Артикули[[#This Row],[КОЛИЧЕСТВО]]*Артикули[[#This Row],[ЕДИНИЧНА ЦЕНА]], \"\")","v":{"v":0,"d":"0.00 лв."}}]
[null,"ВНИМАНИЕ",{"$nulls":4},{"$f":"IFERROR(Артикули[[#This Row],[КОЛИЧЕСТВО]]*Артикули[[#This Row],[ЕДИНИЧНА ЦЕНА]], \"\")","v":{"v":0,"d":"0.00 лв."}}]
[null,"Въведете името за адресиране на предложението в тази клетка",{"$nulls":4},{"$f":"IFERROR(Артикули[[#This Row],[КОЛИЧЕСТВО]]*Артикули[[#This Row],[ЕДИНИЧНА ЦЕНА]], \"\")","v":{"v":0,"d":"0.00 лв."}}]
[null,"УСЛОВИЯ ЗА ПЛАЩАНЕ",{"$nulls":4},{"$f":"IFERROR(Артикули[[#This Row],[КОЛИЧЕСТВО]]*Артикули[[#This Row],[ЕДИНИЧНА ЦЕНА]], \"\")","v":{"v":0,"d":"0.00 лв."}}]
[null,"NET 30",{"$nulls":4},{"$f":"IFERROR(Артикули[[#This Row],[КОЛИЧЕСТВО]]*Артикули[[#This Row],[ЕДИНИЧНА ЦЕНА]], \"\")","v":{"v":0,"d":"0.00 лв."}}]
[null,"КРАЕН СРОК",{"$nulls":4},{"$f":"IFERROR(Артикули[[#This Row],[КОЛИЧЕСТВО]]*Артикули[[#This Row],[ЕДИНИЧНА ЦЕНА]], \"\")","v":{"v":0,"d":"0.00 лв."}}]
[null,{"$f":"TODAY()+30","v":"2018-12-22"},{"$nulls":4},{"$f":"IFERROR(Артикули[[#This Row],[КОЛИЧЕСТВО]]*Артикули[[#This Row],[ЕДИНИЧНА ЦЕНА]], \"\")","v":{"v":0,"d":"0.00 лв."}}]
[{"$nulls":5},"МЕЖДИННА СУМА",{"$f":"SUBTOTAL(109,Артикули[СУМА])","v":{"v":3189.5,"d":"3,189.50 лв."}}]
[{"$nulls":3},"ТОВА ПРЕДЛОЖЕНИЕ ВКЛЮЧВА ОТБЕЛЯЗАНИТЕ УСЛОВИЯ:",null,"ДАНЪЧНА СТАВКА ",{"v":0.0775,"d":"7.75%"}]
[{"$nulls":3},"Въведете условията тук",null,"ДАНЪК ПРОДАЖБИ ",{"$f":"IFERROR(МеждиннаСума*ДанъчнаСтавка, \"\")","v":{"v":247.18625,"d":"247.19 лв."}}]
[{"$nulls":5},"ДРУГИ "]
[{"$nulls":5},"ОБЩО ",{"$f":"IFERROR(МеждиннаСума+G33+Други, \"\")","v":{"v":3436.68625,"d":"3,436.69 лв."}}]
[]
[{"$nulls":3},"Подпишете се по-долу, за да приемете офертата:"]
[]
[{"$nulls":3},"Оторизиран представител",null,null,"Дата"]